[Event "Titled Tuesday Blitz March 07 Late 2023"]
[White "Hirneise, Jens"]
[Black "Rorrer, Grayson"]
[WhiteFideId "24614734"]
[BlackFideId "30944996"]
[WhiteElo "2345"]
[BlackElo "2200"]
[Result "0-1"]
[Round "04"]
[TimeControl "180+2"]
[Date "2023.03.07"]
[WhiteClock "0:00:04"]
[BlackClock "0:00:03"]

1. e4 {[%clk 0:03:00]}  c5 {[%clk 0:02:57]} 2. Be2 {[%clk 0:02:57]}  Nc6 {[%clk 0:02:56]} 3. f4 {[%clk 0:02:54]}  e6 {[%clk 0:02:56]} 4. Nf3 {[%clk 0:02:53]}  d5 {[%clk 0:02:57]} 5. e5 {[%clk 0:02:49]}  h5 {[%clk 0:02:56]} 6. c3 {[%clk 0:02:47]}  g6 {[%clk 0:02:53]} 7. d4 {[%clk 0:02:40]}  Nh6 {[%clk 0:02:53]} 8. a3 {[%clk 0:02:33]}  Nf5 {[%clk 0:02:52]} 9. b4 {[%clk 0:02:30]}  cxd4 {[%clk 0:02:45]} 10. cxd4 {[%clk 0:02:31]}  Qb6 {[%clk 0:02:46]} 11. Bb2 {[%clk 0:02:24]}  Be7 {[%clk 0:02:42]} 12. Qd2 {[%clk 0:02:16]}  h4 {[%clk 0:02:33]} 13. b5 {[%clk 0:02:05]}  Na5 {[%clk 0:02:30]} 14. Ra2 {[%clk 0:01:51]}  Bd7 {[%clk 0:02:23]} 15. a4 {[%clk 0:01:47]}  Rc8 {[%clk 0:01:27]} 16. Bc3 {[%clk 0:01:45]}  Bd8 {[%clk 0:01:27]} 17. O-O {[%clk 0:01:37]}  Nc4 {[%clk 0:01:20]} 18. Bxc4 {[%clk 0:01:33]}  Rxc4 {[%clk 0:01:21]} 19. Rd1 {[%clk 0:01:25]}  Qc7 {[%clk 0:01:08]} 20. Bb4 {[%clk 0:01:21]}  Qc8 {[%clk 0:00:59]} 21. Na3 {[%clk 0:01:20]}  Rc7 {[%clk 0:00:42]} 22. Rc2 {[%clk 0:01:11]}  Rxc2 {[%clk 0:00:41]} 23. Nxc2 {[%clk 0:01:11]}  Qc4 {[%clk 0:00:31]} 24. Rc1 {[%clk 0:01:02]}  Qb3 {[%clk 0:00:24]} 25. Ra1 {[%clk 0:00:54]}  h3 {[%clk 0:00:22]} 26. Qc3 {[%clk 0:00:37]}  Qxc3 {[%clk 0:00:20]} 27. Bxc3 {[%clk 0:00:37]}  hxg2 {[%clk 0:00:21]} 28. Kxg2 {[%clk 0:00:35]}  Be7 {[%clk 0:00:19]} 29. Rc1 {[%clk 0:00:26]}  Kd8 {[%clk 0:00:17]} 30. Kf2 {[%clk 0:00:21]}  b6 {[%clk 0:00:12]} 31. Bb4 {[%clk 0:00:19]}  Bxb4 {[%clk 0:00:06]} 32. Nxb4 {[%clk 0:00:19]}  Ke7 {[%clk 0:00:04]} 33. Nc6+ {[%clk 0:00:16]}  Bxc6 {[%clk 0:00:04]} 34. Rxc6 {[%clk 0:00:16]}  Kd7 {[%clk 0:00:05]} 35. Kg2 {[%clk 0:00:09]}  Ra8 {[%clk 0:00:03]} 36. Ng5 {[%clk 0:00:08]}  Nxd4 {[%clk 0:00:02]} 37. Rd6+ {[%clk 0:00:08]}  Ke7 {[%clk 0:00:03]} 38. Nh7 {[%clk 0:00:07]}  Nf5 {[%clk 0:00:02]} 39. Rc6 {[%clk 0:00:06]}  Kd7 {[%clk 0:00:02]} 40. Nf6+ {[%clk 0:00:06]}  Ke7 {[%clk 0:00:03]} 41. Rc7+ {[%clk 0:00:06]}  Kf8 {[%clk 0:00:04]} 42. Nd7+ {[%clk 0:00:05]}  Kg7 {[%clk 0:00:04]} 43. Nf6 {[%clk 0:00:05]}  d4 {[%clk 0:00:05]} 44. Rd7 {[%clk 0:00:05]}  a6 {[%clk 0:00:03]} 45. Kf3 {[%clk 0:00:04]}  axb5 {[%clk 0:00:04]} 46. axb5 {[%clk 0:00:05]}  Ra3+ {[%clk 0:00:04]} 47. Kf2 {[%clk 0:00:05]}  Ra2+ {[%clk 0:00:05]} 48. Kg1 {[%clk 0:00:04]}  Ra1+ {[%clk 0:00:05]} 49. Kf2 {[%clk 0:00:04]}  Ra2+ {[%clk 0:00:05]} 50. Kg1 {[%clk 0:00:05]}  Ra8 {[%clk 0:00:05]} 51. Kf2 {[%clk 0:00:04]}  Rc8 {[%clk 0:00:05]} 52. Ke2 {[%clk 0:00:03]}  Rc2+ {[%clk 0:00:05]} 53. Kd3 {[%clk 0:00:03]}  Rxh2 {[%clk 0:00:04]} 54. Rd8 {[%clk 0:00:03]}  Rh8 {[%clk 0:00:04]} 55. Rd7 {[%clk 0:00:02]}  g5 {[%clk 0:00:02]} 56. fxg5 {[%clk 0:00:02]}  Kg6 {[%clk 0:00:03]} 57. Ne4 {[%clk 0:00:01]}  Rh3+ {[%clk 0:00:03]} 58. Kd2 {[%clk 0:00:01]}  Rh2+ {[%clk 0:00:02]} 59. Kd3 {[%clk 0:00:02]}  Rh3+ {[%clk 0:00:03]} 60. Kd2 {[%clk 0:00:02]}  Re3 {[%clk 0:00:04]} 61. Nd6 {[%clk 0:00:01]}  Rxe5 {[%clk 0:00:04]} 62. Ne8 {[%clk 0:00:01]}  Rxb5 {[%clk 0:00:03]} 63. Rb7 {[%clk 0:00:02]}  Rb2+ {[%clk 0:00:03]} 64. Kd3 {[%clk 0:00:02]}  b5 {[%clk 0:00:03]} 65. Ke4 {[%clk 0:00:02]}  Rb3 {[%clk 0:00:02]} 66. Nc7 {[%clk 0:00:03]}  d3 {[%clk 0:00:02]} 67. Nxb5 {[%clk 0:00:03]}  d2 {[%clk 0:00:03]} 68. Rd7 {[%clk 0:00:04]}  Rxb5 {[%clk 0:00:03]} 0-1


[Site "https://www.chess.com"]

[Event "Titled Tuesday Blitz March 07 Late 2023"]
[White "Dragomirescu, Angela"]
[Black "EREBUNI91"]
[WhiteFideId "1209914"]
[WhiteElo "2171"]
[BlackElo "2741"]
[Result "0-1"]
[Round "04"]
[TimeControl "180+2"]
[Date "2023.03.07"]
[WhiteClock "0:00:04"]
[BlackClock "0:00:19"]

1. e4 {[%clk 0:03:00]}  c5 {[%clk 0:02:59]} 2. Nf3 {[%clk 0:03:01]}  d6 {[%clk 0:02:59]} 3. d4 {[%clk 0:03:01]}  cxd4 {[%clk 0:03:00]} 4. Nxd4 {[%clk 0:03:02]}  Nf6 {[%clk 0:02:59]} 5. Nc3 {[%clk 0:03:02]}  a6 {[%clk 0:03:00]} 6. Bg5 {[%clk 0:03:02]}  Nbd7 {[%clk 0:03:00]} 7. Qe2 {[%clk 0:03:02]}  h6 {[%clk 0:02:59]} 8. Bh4 {[%clk 0:03:02]}  g6 {[%clk 0:02:59]} 9. f4 {[%clk 0:03:03]}  e5 {[%clk 0:02:59]} 10. fxe5 {[%clk 0:03:03]}  dxe5 {[%clk 0:03:00]} 11. O-O-O {[%clk 0:03:04]}  Qc7 {[%clk 0:03:01]} 12. Nb3 {[%clk 0:03:02]}  b5 {[%clk 0:03:01]} 13. Qf3 {[%clk 0:02:51]}  Bg7 {[%clk 0:02:13]} 14. g4 {[%clk 0:02:51]}  Bb7 {[%clk 0:02:06]} 15. Bd3 {[%clk 0:02:37]}  Rc8 {[%clk 0:01:59]} 16. Kb1 {[%clk 0:02:29]}  O-O {[%clk 0:01:57]} 17. a3 {[%clk 0:02:25]}  Qb6 {[%clk 0:01:32]} 18. Bf2 {[%clk 0:02:11]}  Qe6 {[%clk 0:01:29]} 19. Rhg1 {[%clk 0:02:00]}  Rxc3 {[%clk 0:01:27]} 20. bxc3 {[%clk 0:01:59]}  Rc8 {[%clk 0:01:28]} 21. Kb2 {[%clk 0:00:54]}  Nb6 {[%clk 0:01:27]} 22. Bxb6 {[%clk 0:00:26]}  Qxb6 {[%clk 0:01:27]} 23. Rge1 {[%clk 0:00:21]}  Qc6 {[%clk 0:01:22]} 24. Bf1 {[%clk 0:00:19]}  Qc7 {[%clk 0:00:58]} 25. Kb1 {[%clk 0:00:13]}  a5 {[%clk 0:00:55]} 26. Bxb5 {[%clk 0:00:11]}  a4 {[%clk 0:00:47]} 27. Bxa4 {[%clk 0:00:12]}  Ra8 {[%clk 0:00:39]} 28. Bb5 {[%clk 0:00:11]}  Rxa3 {[%clk 0:00:39]} 29. Qd3 {[%clk 0:00:10]}  Bf8 {[%clk 0:00:37]} 30. Rf1 {[%clk 0:00:07]}  Rxb3+ {[%clk 0:00:27]} 31. cxb3 {[%clk 0:00:05]}  Bxe4 {[%clk 0:00:27]} 32. Rxf6 {[%clk 0:00:06]}  Bxd3+ {[%clk 0:00:24]} 33. Rxd3 {[%clk 0:00:07]}  e4 {[%clk 0:00:21]} 34. Rd7 {[%clk 0:00:07]}  Qxc3 {[%clk 0:00:20]} 35. Bc4 {[%clk 0:00:04]}  Qxf6 {[%clk 0:00:19]} 0-1


[Site "https://www.chess.com"]

[Event "Titled Tuesday Blitz March 07 Late 2023"]
[White "Hambleton, Aman"]
[Black "Petrovic, Aleksa"]
[WhiteFideId "2606577"]
[BlackFideId "967629"]
[WhiteElo "2511"]
[BlackElo "2326"]
[Result "1-0"]
[Round "04"]
[TimeControl "180+2"]
[Date "2023.03.07"]
[WhiteClock "0:00:15"]
[BlackClock "0:00:39"]

1. d4 {[%clk 0:03:00]}  Nf6 {[%clk 0:02:50]} 2. Bf4 {[%clk 0:02:59]}  e6 {[%clk 0:02:46]} 3. e3 {[%clk 0:02:58]}  c5 {[%clk 0:02:45]} 4. c3 {[%clk 0:02:58]}  b6 {[%clk 0:02:44]} 5. Nf3 {[%clk 0:02:57]}  Bb7 {[%clk 0:02:45]} 6. h3 {[%clk 0:02:57]}  Be7 {[%clk 0:02:45]} 7. Bd3 {[%clk 0:02:57]}  O-O {[%clk 0:02:45]} 8. O-O {[%clk 0:02:57]}  Nc6 {[%clk 0:02:45]} 9. Nbd2 {[%clk 0:02:58]}  cxd4 {[%clk 0:02:44]} 10. exd4 {[%clk 0:02:59]}  Nd5 {[%clk 0:02:44]} 11. Bg3 {[%clk 0:02:57]}  f5 {[%clk 0:02:44]} 12. Re1 {[%clk 0:02:44]}  Qe8 {[%clk 0:02:43]} 13. Nc4 {[%clk 0:02:40]}  f4 {[%clk 0:02:30]} 14. Bh4 {[%clk 0:02:27]}  Bxh4 {[%clk 0:02:23]} 15. Nxh4 {[%clk 0:02:26]}  Qe7 {[%clk 0:02:23]} 16. Nf3 {[%clk 0:02:27]}  Rae8 {[%clk 0:02:17]} 17. Qc2 {[%clk 0:02:02]}  g5 {[%clk 0:02:12]} 18. Nce5 {[%clk 0:01:52]}  Nxe5 {[%clk 0:02:07]} 19. Nxe5 {[%clk 0:01:53]}  Qg7 {[%clk 0:01:59]} 20. Be4 {[%clk 0:01:36]}  d6 {[%clk 0:01:55]} 21. Nf3 {[%clk 0:01:36]}  Rf6 {[%clk 0:01:22]} 22. c4 {[%clk 0:01:16]}  Rc8 {[%clk 0:01:13]} 23. Qb3 {[%clk 0:00:47]}  h5 {[%clk 0:00:48]} 24. cxd5 {[%clk 0:00:46]}  g4 {[%clk 0:00:48]} 25. Nh2 {[%clk 0:00:26]}  f3 {[%clk 0:00:38]} 26. g3 {[%clk 0:00:20]}  h4 {[%clk 0:00:37]} 27. Nxg4 {[%clk 0:00:20]}  hxg3 {[%clk 0:00:38]} 28. Nxf6+ {[%clk 0:00:15]}  Qxf6 {[%clk 0:00:39]} 29. Qxf3 {[%clk 0:00:15]} 1-0


[Site "https://www.chess.com"]

[Event "Titled Tuesday Blitz March 07 Late 2023"]
[White "Sokac, Marko"]
[Black "Bilych, Olexiy"]
[WhiteFideId "14531356"]
[BlackFideId "14156504"]
[WhiteElo "2355"]
[BlackElo "2320"]
[Result "1-0"]
[Round "04"]
[TimeControl "180+2"]
[Date "2023.03.07"]
[WhiteClock "0:00:59"]
[BlackClock "0:00:06"]

1. e4 {[%clk 0:03:00]}  c5 {[%clk 0:03:00]} 2. a3 {[%clk 0:03:00]}  g6 {[%clk 0:02:59]} 3. h4 {[%clk 0:03:00]}  h5 {[%clk 0:02:52]} 4. Nf3 {[%clk 0:02:57]}  Bg7 {[%clk 0:02:52]} 5. d4 {[%clk 0:02:56]}  cxd4 {[%clk 0:02:51]} 6. Nxd4 {[%clk 0:02:57]}  Nc6 {[%clk 0:02:51]} 7. Be3 {[%clk 0:02:57]}  Nf6 {[%clk 0:02:46]} 8. Nc3 {[%clk 0:02:51]}  Ng4 {[%clk 0:02:45]} 9. Nxc6 {[%clk 0:02:50]}  bxc6 {[%clk 0:02:42]} 10. Bd4 {[%clk 0:02:50]}  Bxd4 {[%clk 0:02:09]} 11. Qxd4 {[%clk 0:02:51]}  e5 {[%clk 0:02:09]} 12. Qd2 {[%clk 0:02:32]}  Qb6 {[%clk 0:02:08]} 13. b3 {[%clk 0:02:20]}  Qd4 {[%clk 0:01:38]} 14. Qxd4 {[%clk 0:02:03]}  exd4 {[%clk 0:01:39]} 15. Ne2 {[%clk 0:02:03]}  c5 {[%clk 0:01:38]} 16. c3 {[%clk 0:01:59]}  d3 {[%clk 0:01:15]} 17. Nf4 {[%clk 0:01:56]}  d2+ {[%clk 0:01:13]} 18. Ke2 {[%clk 0:01:50]}  Rb8 {[%clk 0:01:04]} 19. b4 {[%clk 0:01:46]}  a5 {[%clk 0:01:02]} 20. f3 {[%clk 0:01:42]}  Ne5 {[%clk 0:01:01]} 21. Kxd2 {[%clk 0:01:37]}  axb4 {[%clk 0:00:59]} 22. axb4 {[%clk 0:01:38]}  cxb4 {[%clk 0:00:58]} 23. cxb4 {[%clk 0:01:38]}  Rxb4 {[%clk 0:00:58]} 24. Ra8 {[%clk 0:01:27]}  O-O {[%clk 0:00:58]} 25. Nd5 {[%clk 0:01:28]}  Rb2+ {[%clk 0:00:54]} 26. Kc3 {[%clk 0:01:27]}  Rb1 {[%clk 0:00:15]} 27. Kc2 {[%clk 0:01:21]}  Rb7 {[%clk 0:00:10]} 28. Ba6 {[%clk 0:01:18]}  Kg7 {[%clk 0:00:05]} 29. Bxb7 {[%clk 0:01:14]}  Bxb7 {[%clk 0:00:05]} 30. Rxf8 {[%clk 0:01:12]}  Kxf8 {[%clk 0:00:06]} 31. Rb1 {[%clk 0:01:11]}  Bxd5 {[%clk 0:00:06]} 32. exd5 {[%clk 0:01:11]}  Ke7 {[%clk 0:00:07]} 33. Kc3 {[%clk 0:01:10]}  f6 {[%clk 0:00:05]} 34. Kd4 {[%clk 0:01:09]}  Nf7 {[%clk 0:00:05]} 35. Kc5 {[%clk 0:01:00]}  Nd6 {[%clk 0:00:06]} 36. Re1+ {[%clk 0:00:59]} 1-0


[Site "https://www.chess.com"]

[Event "Titled Tuesday Blitz March 07 Late 2023"]
[White "Roberson, Peter T"]
[Black "Nasuta, Grzegorz"]
[WhiteFideId "412384"]
[BlackFideId "1141686"]
[WhiteElo "2346"]
[BlackElo "2449"]
[Result "0-1"]
[Round "04"]
[TimeControl "180+2"]
[Date "2023.03.07"]
[WhiteClock "0:01:54"]
[BlackClock "0:01:54"]

1. d4 {[%clk 0:03:00]}  g6 {[%clk 0:02:52]} 2. e4 {[%clk 0:02:55]}  Bg7 {[%clk 0:02:50]} 3. Be3 {[%clk 0:02:56]}  d6 {[%clk 0:02:50]} 4. Qd2 {[%clk 0:02:56]}  a6 {[%clk 0:02:50]} 5. c4 {[%clk 0:02:55]}  Nf6 {[%clk 0:02:48]} 6. Nc3 {[%clk 0:02:55]}  Ng4 {[%clk 0:02:46]} 7. Bg5 {[%clk 0:02:53]}  h6 {[%clk 0:02:46]} 8. Bh4 {[%clk 0:02:53]}  Nc6 {[%clk 0:02:27]} 9. f3 {[%clk 0:02:50]}  Nf6 {[%clk 0:02:25]} 10. Bf2 {[%clk 0:02:36]}  e5 {[%clk 0:02:17]} 11. d5 {[%clk 0:02:36]}  Nd4 {[%clk 0:02:16]} 12. Nge2 {[%clk 0:02:34]}  Nxe2 {[%clk 0:02:10]} 13. Bxe2 {[%clk 0:02:35]}  O-O {[%clk 0:02:09]} 14. O-O {[%clk 0:02:33]}  Nh5 {[%clk 0:02:05]} 15. c5 {[%clk 0:02:30]}  Nf4 {[%clk 0:02:05]} 16. cxd6 {[%clk 0:02:30]}  cxd6 {[%clk 0:02:06]} 17. Na4 {[%clk 0:02:30]}  Qg5 {[%clk 0:02:02]} 18. Qxf4 {[%clk 0:01:54]}  exf4 {[%clk 0:01:57]} 19. Nb6 {[%clk 0:01:55]}  Rb8 {[%clk 0:01:57]} 20. Rfc1 {[%clk 0:01:54]}  Bxb2 {[%clk 0:01:54]} 0-1


[Site "https://www.chess.com"]

[Event "Titled Tuesday Blitz March 07 Late 2023"]
[White "Weichhold, Pawel"]
[Black "Ezat, Mohamed"]
[WhiteFideId "1139703"]
[BlackFideId "10600906"]
[WhiteElo "2330"]
[BlackElo "2386"]
[Result "1-0"]
[Round "04"]
[TimeControl "180+2"]
[Date "2023.03.07"]
[WhiteClock "0:00:11"]
[BlackClock "0:00:27"]

1. e4 {[%clk 0:03:00]}  c6 {[%clk 0:02:58]} 2. d4 {[%clk 0:03:00]}  d5 {[%clk 0:02:58]} 3. e5 {[%clk 0:03:01]}  c5 {[%clk 0:02:57]} 4. dxc5 {[%clk 0:03:01]}  e6 {[%clk 0:02:54]} 5. a3 {[%clk 0:03:00]}  Bxc5 {[%clk 0:02:54]} 6. b4 {[%clk 0:03:01]}  Bb6 {[%clk 0:02:54]} 7. Bb2 {[%clk 0:02:58]}  Ne7 {[%clk 0:02:53]} 8. Bd3 {[%clk 0:02:58]}  a5 {[%clk 0:02:50]} 9. Nf3 {[%clk 0:02:56]}  axb4 {[%clk 0:02:49]} 10. axb4 {[%clk 0:02:57]}  Rxa1 {[%clk 0:02:49]} 11. Bxa1 {[%clk 0:02:58]}  Nbc6 {[%clk 0:02:48]} 12. b5 {[%clk 0:02:45]}  Na5 {[%clk 0:02:34]} 13. O-O {[%clk 0:02:43]}  Ng6 {[%clk 0:02:29]} 14. Re1 {[%clk 0:02:39]}  O-O {[%clk 0:02:28]} 15. Nc3 {[%clk 0:02:24]}  Bd7 {[%clk 0:02:18]} 16. Na4 {[%clk 0:02:24]}  Ba7 {[%clk 0:02:10]} 17. Qd2 {[%clk 0:02:19]}  b6 {[%clk 0:01:54]} 18. Bd4 {[%clk 0:02:16]}  Nc4 {[%clk 0:01:47]} 19. Bxc4 {[%clk 0:02:08]}  dxc4 {[%clk 0:01:47]} 20. Qb4 {[%clk 0:02:09]}  Nf4 {[%clk 0:01:43]} 21. Qxc4 {[%clk 0:02:01]}  Qe8 {[%clk 0:01:32]} 22. Rb1 {[%clk 0:01:59]}  Qb8 {[%clk 0:01:25]} 23. Bxb6 {[%clk 0:01:28]}  Nh3+ {[%clk 0:01:00]} 24. gxh3 {[%clk 0:01:29]}  Bxb6 {[%clk 0:01:00]} 25. Nxb6 {[%clk 0:01:27]}  Qxb6 {[%clk 0:01:00]} 26. Qd4 {[%clk 0:01:26]}  Qb7 {[%clk 0:00:59]} 27. Rb3 {[%clk 0:01:11]}  Ra8 {[%clk 0:00:48]} 28. c4 {[%clk 0:01:06]}  h6 {[%clk 0:00:41]} 29. Nd2 {[%clk 0:00:54]}  Ra2 {[%clk 0:00:31]} 30. Rd3 {[%clk 0:00:50]}  Be8 {[%clk 0:00:26]} 31. f3 {[%clk 0:00:46]}  Qe7 {[%clk 0:00:25]} 32. Qe3 {[%clk 0:00:40]}  Qh4 {[%clk 0:00:21]} 33. f4 {[%clk 0:00:37]}  Rc2 {[%clk 0:00:18]} 34. Qg3 {[%clk 0:00:34]}  Qh5 {[%clk 0:00:18]} 35. Qf3 {[%clk 0:00:18]}  Qxf3 {[%clk 0:00:17]} 36. Nxf3 {[%clk 0:00:14]}  Rxc4 {[%clk 0:00:17]} 37. Rb3 {[%clk 0:00:14]}  Rxf4 {[%clk 0:00:15]} 38. b6 {[%clk 0:00:15]}  Bc6 {[%clk 0:00:16]} 39. Ne1 {[%clk 0:00:14]}  Bb7 {[%clk 0:00:15]} 40. Nd3 {[%clk 0:00:14]}  Rf3 {[%clk 0:00:15]} 41. Nc5 {[%clk 0:00:14]}  Rxb3 {[%clk 0:00:12]} 42. Nxb3 {[%clk 0:00:15]}  Kf8 {[%clk 0:00:12]} 43. Nc5 {[%clk 0:00:14]}  Bd5 {[%clk 0:00:12]} 44. b7 {[%clk 0:00:14]}  Bxb7 {[%clk 0:00:13]} 45. Nxb7 {[%clk 0:00:15]}  f6 {[%clk 0:00:13]} 46. Nc5 {[%clk 0:00:12]}  Kf7 {[%clk 0:00:13]} 47. Nd3 {[%clk 0:00:12]}  Kg6 {[%clk 0:00:13]} 48. Kf2 {[%clk 0:00:12]}  Kf5 {[%clk 0:00:13]} 49. exf6 {[%clk 0:00:12]}  gxf6 {[%clk 0:00:13]} 50. Kf3 {[%clk 0:00:12]}  e5 {[%clk 0:00:13]} 51. Ne1 {[%clk 0:00:12]}  h5 {[%clk 0:00:13]} 52. Ng2 {[%clk 0:00:12]}  Kg5 {[%clk 0:00:13]} 53. h4+ {[%clk 0:00:10]}  Kf5 {[%clk 0:00:13]} 54. Ne3+ {[%clk 0:00:10]}  Ke6 {[%clk 0:00:12]} 55. Ke4 {[%clk 0:00:11]}  Ke7 {[%clk 0:00:12]} 56. Nf5+ {[%clk 0:00:12]}  Kf7 {[%clk 0:00:13]} 57. Ng3 {[%clk 0:00:10]}  Kg6 {[%clk 0:00:13]} 58. h3 {[%clk 0:00:10]}  Kh6 {[%clk 0:00:12]} 59. Kf5 {[%clk 0:00:10]}  Kg7 {[%clk 0:00:12]} 60. Ne4 {[%clk 0:00:11]}  Kf7 {[%clk 0:00:11]} 61. Nxf6 {[%clk 0:00:11]}  Ke7 {[%clk 0:00:12]} 62. Kxe5 {[%clk 0:00:11]}  Kf7 {[%clk 0:00:13]} 63. Kf5 {[%clk 0:00:11]}  Kg7 {[%clk 0:00:13]} 64. Kg5 {[%clk 0:00:12]}  Kf7 {[%clk 0:00:14]} 65. Nxh5 {[%clk 0:00:12]}  Kg8 {[%clk 0:00:14]} 66. Nf4 {[%clk 0:00:13]}  Kh7 {[%clk 0:00:14]} 67. h5 {[%clk 0:00:14]}  Kg7 {[%clk 0:00:14]} 68. h6+ {[%clk 0:00:15]}  Kh7 {[%clk 0:00:15]} 69. Kh5 {[%clk 0:00:15]}  Kh8 {[%clk 0:00:16]} 70. Kg6 {[%clk 0:00:16]}  Kg8 {[%clk 0:00:17]} 71. Nd5 {[%clk 0:00:16]}  Kh8 {[%clk 0:00:18]} 72. h4 {[%clk 0:00:15]}  Kg8 {[%clk 0:00:18]} 73. Ne3 {[%clk 0:00:14]}  Kh8 {[%clk 0:00:19]} 74. Nf5 {[%clk 0:00:13]}  Kg8 {[%clk 0:00:20]} 75. Nd6 {[%clk 0:00:13]}  Kh8 {[%clk 0:00:20]} 76. h5 {[%clk 0:00:11]}  Kg8 {[%clk 0:00:21]} 77. h7+ {[%clk 0:00:11]}  Kf8 {[%clk 0:00:22]} 78. h8=Q+ {[%clk 0:00:12]}  Ke7 {[%clk 0:00:23]} 79. Qe5+ {[%clk 0:00:12]}  Kd7 {[%clk 0:00:24]} 80. Ne4 {[%clk 0:00:12]}  Kc6 {[%clk 0:00:25]} 81. Qc5+ {[%clk 0:00:12]}  Kd7 {[%clk 0:00:26]} 82. Qd6+ {[%clk 0:00:12]}  Ke8 {[%clk 0:00:27]} 83. Qc7 {[%clk 0:00:10]}  Kf8 {[%clk 0:00:27]} 84. Qf7# {[%clk 0:00:11]} 1-0


[Site "https://www.chess.com"]

[Event "Titled Tuesday Blitz March 07 Late 2023"]
[White "Wieczorek, Oskar"]
[Black "reevecanada"]
[WhiteFideId "1133950"]
[WhiteElo "2418"]
[BlackElo "2511"]
[Result "0-1"]
[Round "04"]
[TimeControl "180+2"]
[Date "2023.03.07"]
[WhiteClock "0:00:02"]
[BlackClock "0:00:14"]

1. e4 {[%clk 0:03:00]}  c5 {[%clk 0:02:58]} 2. Nf3 {[%clk 0:03:00]}  d6 {[%clk 0:02:53]} 3. d4 {[%clk 0:02:57]}  cxd4 {[%clk 0:02:53]} 4. Nxd4 {[%clk 0:02:58]}  Nf6 {[%clk 0:02:53]} 5. Nc3 {[%clk 0:02:58]}  a6 {[%clk 0:02:53]} 6. f4 {[%clk 0:02:58]}  e6 {[%clk 0:02:49]} 7. Qf3 {[%clk 0:02:56]}  Be7 {[%clk 0:02:49]} 8. g4 {[%clk 0:02:55]}  h6 {[%clk 0:02:47]} 9. h4 {[%clk 0:02:53]}  Qc7 {[%clk 0:02:47]} 10. g5 {[%clk 0:02:47]}  Nfd7 {[%clk 0:02:45]} 11. g6 {[%clk 0:02:43]}  Nf8 {[%clk 0:02:25]} 12. gxf7+ {[%clk 0:02:39]}  Kxf7 {[%clk 0:02:26]} 13. Be3 {[%clk 0:02:08]}  b5 {[%clk 0:02:21]} 14. f5 {[%clk 0:02:06]}  Bf6 {[%clk 0:02:17]} 15. Qh5+ {[%clk 0:01:46]}  Kg8 {[%clk 0:01:55]} 16. fxe6 {[%clk 0:01:42]}  Nxe6 {[%clk 0:01:52]} 17. Qd5 {[%clk 0:01:20]}  Bxd4 {[%clk 0:01:05]} 18. Bxd4 {[%clk 0:01:21]}  Nc6 {[%clk 0:01:03]} 19. Be3 {[%clk 0:01:07]}  Nb4 {[%clk 0:00:54]} 20. Qd2 {[%clk 0:01:03]}  Bb7 {[%clk 0:00:52]} 21. a3 {[%clk 0:01:01]}  Nc6 {[%clk 0:00:51]} 22. Nd5 {[%clk 0:01:02]}  Qf7 {[%clk 0:00:49]} 23. Bh3 {[%clk 0:01:01]}  Ne5 {[%clk 0:00:47]} 24. Rf1 {[%clk 0:01:01]}  Nf3+ {[%clk 0:00:34]} 25. Rxf3 {[%clk 0:01:00]}  Qxf3 {[%clk 0:00:35]} 26. Bxe6+ {[%clk 0:01:00]}  Kh7 {[%clk 0:00:35]} 27. Bf5+ {[%clk 0:00:52]}  g6 {[%clk 0:00:34]} 28. Nf6+ {[%clk 0:00:20]}  Kg7 {[%clk 0:00:34]} 29. Qxd6 {[%clk 0:00:20]}  Qxe3+ {[%clk 0:00:26]} 30. Kf1 {[%clk 0:00:19]}  Rhf8 {[%clk 0:00:20]} 31. Ng4 {[%clk 0:00:01]}  Qf3+ {[%clk 0:00:19]} 32. Kg1 {[%clk 0:00:01]}  Rae8 {[%clk 0:00:16]} 33. Qd7+ {[%clk 0:00:01]}  Kh8 {[%clk 0:00:17]} 34. Qd4+ {[%clk 0:00:01]}  Kh7 {[%clk 0:00:16]} 35. Qd7+ {[%clk 0:00:01]}  Kg8 {[%clk 0:00:15]} 36. Nxh6+ {[%clk 0:00:01]}  Kh8 {[%clk 0:00:15]} 37. Nf7+ {[%clk 0:00:01]}  Rxf7 {[%clk 0:00:16]} 38. Qxf7 {[%clk 0:00:02]}  Rg8 {[%clk 0:00:14]} 0-1


[Site "https://www.chess.com"]

[Event "Titled Tuesday Blitz March 07 Late 2023"]
[White "Goltsev, Dmitry"]
[Black "ArchibaldCerveza29"]
[WhiteFideId "24176710"]
[WhiteElo "2336"]
[BlackElo "2473"]
[Result "1-0"]
[Round "04"]
[TimeControl "180+2"]
[Date "2023.03.07"]
[WhiteClock "0:02:46"]
[BlackClock "0:00:33"]

1. e4 {[%clk 0:03:00]}  e5 {[%clk 0:02:55]} 2. Nf3 {[%clk 0:03:00]}  Nc6 {[%clk 0:02:56]} 3. Bb5 {[%clk 0:03:01]}  g6 {[%clk 0:02:55]} 4. O-O {[%clk 0:03:01]}  Bg7 {[%clk 0:02:55]} 5. c3 {[%clk 0:03:01]}  a6 {[%clk 0:02:55]} 6. Ba4 {[%clk 0:03:01]}  Nge7 {[%clk 0:02:55]} 7. d4 {[%clk 0:03:01]}  exd4 {[%clk 0:02:56]} 8. cxd4 {[%clk 0:03:02]}  b5 {[%clk 0:02:57]} 9. Bc2 {[%clk 0:03:01]}  d5 {[%clk 0:02:57]} 10. Nc3 {[%clk 0:03:02]}  O-O {[%clk 0:02:55]} 11. h3 {[%clk 0:03:02]}  dxe4 {[%clk 0:02:49]} 12. Bxe4 {[%clk 0:03:02]}  Bf5 {[%clk 0:02:48]} 13. Bg5 {[%clk 0:03:01]}  Bxe4 {[%clk 0:02:47]} 14. Nxe4 {[%clk 0:03:02]}  h6 {[%clk 0:02:38]} 15. Bf6 {[%clk 0:02:59]}  Qd5 {[%clk 0:02:31]} 16. Re1 {[%clk 0:02:56]}  Rfe8 {[%clk 0:02:25]} 17. Rc1 {[%clk 0:02:54]}  Nf5 {[%clk 0:02:02]} 18. Rc5 {[%clk 0:02:52]}  Qd7 {[%clk 0:02:01]} 19. d5 {[%clk 0:02:51]}  Na5 {[%clk 0:01:00]} 20. Bxg7 {[%clk 0:02:48]}  Kxg7 {[%clk 0:01:01]} 21. Nf6 {[%clk 0:02:48]}  Kxf6 {[%clk 0:00:45]} 22. Qd2 {[%clk 0:02:47]}  Rxe1+ {[%clk 0:00:36]} 23. Qxe1 {[%clk 0:02:48]}  Qe7 {[%clk 0:00:33]} 24. Qc3+ {[%clk 0:02:46]} 1-0


[Site "https://www.chess.com"]